fUSD/lending_fUSD_20250112
["ID","MTS","AMOUNT","RATE_DAILY","PERIOD"]
[348627536,1736688638248,-500.0,9.975e-05,2]
[348627537,1736688638258,-500.0,9.975e-05,2]
[348627538,1736688638267,-500.0,9.975e-05,2]
[348627539,1736688638278,-500.0,9.975e-05,2]
[348627540,1736688638289,-500.0,9.975e-05,2]
[348627541,1736688638299,-509.84,9.975e-05,2]
[348627542,1736688638309,-500.0,9.975e-05,2]
[348627543,1736688638318,-587.84,9.975e-05,2]
[348627544,1736688638328,-907.35,9.975e-05,2]
[348627545,1736688638337,-834.47,9.975e-05,2]
[348627546,1736688638346,-500.0,9.975e-05,2]
[348627547,1736688638355,-704.95,9.975e-05,2]
[348627548,1736688638364,-500.0,9.975e-05,2]
[348627549,1736688638374,-500.0,9.975e-05,2]
[348627550,1736688638383,-165.39,9.975e-05,2]
[348627551,1736688638392,-643.27,9.975e-05,2]
[348627552,1736688638401,-500.0,9.975e-05,2]
[348627553,1736688638409,-500.0,9.975e-05,2]
[348627554,1736688638419,-500.0,9.975e-05,2]
[348627555,1736688638428,-892.06,9.975e-05,2]
[348627556,1736688638438,-500.0,9.975e-05,2]
[348627557,1736688638447,-864.47,9.975e-05,2]
[348627558,1736688638456,-500.0,9.975e-05,2]
[348627559,1736688638466,-786.11,9.975e-05,2]
[348627560,1736688638475,-500.0,9.975e-05,2]
[348627561,1736688638484,-585.47,9.975e-05,2]
[348627562,1736688638493,-500.0,9.975e-05,2]
[348627563,1736688638502,-380.72160842,9.975e-05,2]
[348627564,1736688638511,-622.73,9.975e-05,2]
[348627565,1736688638521,-555.36,9.975e-05,2]
[348627566,1736688638531,-521.75,9.975e-05,2]
[348627567,1736688638540,-680.69,9.975e-05,2]
[348627568,1736688638551,-649.04,9.975e-05,2]
[348627569,1736688638562,-528.12,9.975e-05,2]
[348627570,1736688638571,-503.95,9.975e-05,2]
[348627571,1736688638581,-353.730012,9.975e-05,2]
[348627572,1736688638591,-523.66,9.975e-05,2]
[348627573,1736688638600,-951.0,9.975e-05,2]
[348627574,1736688638609,-705.85,9.975e-05,2]
[348627575,1736688638620,-802.33,9.975e-05,2]
[348627576,1736688638630,-500.0,9.975e-05,2]
[348627577,1736688638641,-500.0,9.975e-05,2]
[348627578,1736688638651,-500.0,9.975e-05,2]
[348627579,1736688638660,-585.48,9.975e-05,2]
[348627580,1736688638669,-630.21,9.975e-05,2]
[348627581,1736688638679,-688.9,9.975e-05,2]
[348627582,1736688638688,-500.0,9.975e-05,2]
[348627583,1736688638697,-573.3,9.975e-05,2]
[348627584,1736688638707,-837.42,9.975e-05,2]
[348627585,1736688638715,-473.91821886,9.975e-05,2]
[348627586,1736688638724,-595.07723551,9.975e-05,2]
[348627587,1736688638733,-500.0,9.975e-05,2]
[348627588,1736688638742,-545.26,9.975e-05,2]
[348627589,1736688638752,-500.0,9.975e-05,2]
[348627590,1736688638761,-500.0,9.975e-05,2]
[348627591,1736688638770,-858.68,9.975e-05,2]
[348627592,1736688638779,-500.0,9.975e-05,2]
[348627593,1736688638787,-500.0,9.975e-05,2]
[348627594,1736688638796,-500.0,9.975e-05,2]
[348627595,1736688638806,-498.46236028,9.975e-05,2]
[348627596,1736688638815,-515.12,9.975e-05,2]
[348627597,1736688638824,-500.0,9.975e-05,2]
[348627598,1736688638834,-501.36088546,9.975e-05,2]
[348627599,1736688638844,-1470.99,9.975e-05,2]
[348627600,1736688638855,-580.34,9.975e-05,2]
[348627601,1736688638864,-500.0,9.975e-05,2]
[348627602,1736688638874,-500.0,9.975e-05,2]
[348627603,1736688638884,-500.0,9.975e-05,2]
[348627604,1736688638894,-1100.74,9.975e-05,2]
[348627605,1736688638904,-500.0,9.975e-05,2]
[348627606,1736688638914,-500.0,9.975e-05,2]
[348627607,1736688638923,-500.0,9.975e-05,2]
[348627608,1736688638933,-500.0,9.975e-05,2]
[348627609,1736688638943,-1635.67,9.975e-05,2]
[348627610,1736688638954,-899.49,9.975e-05,2]
[348627611,1736688638963,-500.0,9.975e-05,2]
[348627612,1736688638972,-567.76,9.975e-05,2]
[348627613,1736688638981,-523.11,9.975e-05,2]
[348627614,1736688638990,-500.0,9.975e-05,2]
[348627615,1736688639000,-570.45,9.975e-05,2]
[348627616,1736688639010,-959.4,9.975e-05,2]
[348627617,1736688639019,-500.0,9.975e-05,2]
[348627618,1736688639028,-500.0,9.975e-05,2]
[348627619,1736688639037,-754.91,9.975e-05,2]
[348627620,1736688639046,-2504.08,9.975e-05,2]
[348627621,1736688639056,-500.0,9.975e-05,2]
[348627622,1736688639065,-500.0,9.975e-05,2]
[348627623,1736688639075,-757.29,9.975e-05,2]
[348627624,1736688639085,-850.29,9.975e-05,2]
[348627625,1736688639094,-783.07,9.975e-05,2]
[348627626,1736688639104,-845.65,9.975e-05,2]
[348627627,1736688639113,-500.0,9.975e-05,2]
[348627628,1736688639123,-555.3,9.975e-05,2]
[348627629,1736688639132,-6897.4,9.975e-05,2]
[348627630,1736688639141,-515.13,9.975e-05,2]
[348627631,1736688639150,-501.46425836,9.975e-05,2]
[348627632,1736688639159,-500.0,9.975e-05,2]
[348627633,1736688639168,-501.63872328,9.975e-05,2]
[348627634,1736688639177,-708.02,9.975e-05,2]
[348627635,1736688639186,-500.0,9.975e-05,2]
[348627636,1736688639195,-500.0,9.975e-05,2]
[348627637,1736688639205,-787.163543,9.975e-05,2]
[348627638,1736688639215,-500.0,9.975e-05,2]
[348627639,1736688639224,-500.0,9.975e-05,2]
[348627640,1736688639235,-159.355486,9.975e-05,2]
[348627641,1736688639244,-512.42,9.975e-05,2]
[348627642,1736688639254,-501.32859064,9.975e-05,2]
[348627643,1736688639265,-1567.77,9.975e-05,2]
[348627644,1736688639275,-1020.53,9.975e-05,2]
[348627645,1736688639285,-501.2773116,9.975e-05,2]
[348627646,1736688639295,-816.82,9.975e-05,2]
[348627647,1736688639304,-540.28,9.975e-05,2]
[348627649,1736688639313,-500.0,9.975e-05,2]
[348627650,1736688639323,-1343.52,9.975e-05,2]
[348627651,1736688639332,-500.51172738,9.975e-05,2]
[348627652,1736688639341,-689.75,9.975e-05,2]
[348627653,1736688639352,-500.0,9.975e-05,2]
[348627654,1736688639362,-500.0,9.975e-05,2]
[348627655,1736688639371,-563.12,9.975e-05,2]
[348627656,1736688639381,-500.0,9.975e-05,2]
[348627657,1736688639390,-956.73,9.975e-05,2]
[348627658,1736688639400,-502.69811503,9.975e-05,2]
[348627659,1736688639409,-500.0,9.975e-05,2]
[348627660,1736688639418,-559.85,9.975e-05,2]
[348627662,1736688639427,-501.00282612,9.975e-05,2]
[348627665,1736688639436,-649.819385,9.975e-05,2]
[348627667,1736688639446,-500.35373502,9.975e-05,2]
[348627668,1736688639456,-3211.13,9.975e-05,2]
[348627669,1736688639465,-960.86,9.975e-05,2]
[348627670,1736688639475,-990.65,9.975e-05,2]
[348627671,1736688639485,-502.05273493,9.975e-05,2]
[348627672,1736688639495,-1355.26,9.975e-05,2]
[348627673,1736688639504,-501.46697405,9.975e-05,2]
[348627674,1736688639514,-1251.35,9.975e-05,2]
[348627675,1736688639523,-873.46,9.975e-05,2]
[348627676,1736688639532,-637.67,9.975e-05,2]
[348627677,1736688639543,-613.12,9.975e-05,2]
[348627678,1736688639553,-7225.4,9.975e-05,2]
[348627679,1736688639562,-1202.19,9.975e-05,2]
[348627680,1736688639572,-1501.06,9.975e-05,2]
[348627681,1736688639581,-766.47,9.975e-05,2]
[348627682,1736688639591,-500.0,9.975e-05,2]
[348627683,1736688639600,-3619.06,9.975e-05,2]
[348627684,1736688639609,-1781.53,9.975e-05,2]
[348627685,1736688639619,-9355.94,9.975e-05,2]
[348627686,1736688639628,-971.86,9.975e-05,2]
[348627687,1736688639637,-569.46,9.975e-05,2]
[348627688,1736688639647,-970.21,9.975e-05,2]
[348627689,1736688639656,-1173.48,9.975e-05,2]
[348627690,1736688639665,-580.3,9.975e-05,2]
[348627691,1736688639675,-500.0,9.975e-05,2]
[348627692,1736688639684,-500.0,9.975e-05,2]
[348627693,1736688639693,-1425.52,9.975e-05,2]
[348627694,1736688639702,-742.36,9.975e-05,2]
[348627695,1736688639711,-980.77,9.975e-05,2]
[348627696,1736688639880,-500.0,9.975e-05,2]
[348627697,1736688639891,-500.0,9.975e-05,2]
[348627698,1736688639901,-612.03,9.975e-05,2]
[348627699,1736688639910,-500.0,9.975e-05,2]
[348627700,1736688639919,-500.0,9.975e-05,2]
[348627701,1736688639928,-501.11955231,9.975e-05,2]
[348627702,1736688639938,-500.0,9.975e-05,2]
[348627703,1736688639947,-985.23,9.975e-05,2]
[348627704,1736688639957,-1316.04,9.975e-05,2]
[348627705,1736688639966,-500.0,9.975e-05,2]
[348627706,1736688639976,-719.9,9.975e-05,2]
[348627707,1736688639987,-500.0,9.975e-05,2]
[348627708,1736688639998,-527.91,9.975e-05,2]
[348627709,1736688640008,-962.25,9.975e-05,2]
[348627710,1736688640019,-1964.92,9.975e-05,2]
[348627711,1736688640028,-500.0,9.975e-05,2]
[348627712,1736688640039,-2307.09,9.975e-05,2]
[348627713,1736688640051,-500.0,9.975e-05,2]
[348627714,1736688640061,-1134.57,9.975e-05,2]
[348627715,1736688640070,-500.0,9.975e-05,2]
[348627716,1736688640082,-835.85,9.975e-05,2]
[348627717,1736688640091,-635.88,9.975e-05,2]
[348627718,1736688640102,-500.0,9.975e-05,2]
[348627719,1736688640111,-500.0,9.975e-05,2]
[348627720,1736688640120,-500.0,9.975e-05,2]
[348627721,1736688640129,-677.38,9.975e-05,2]
[348627722,1736688640139,-4618.09,9.975e-05,2]
[348627723,1736688640148,-2389.03,9.975e-05,2]
[348627724,1736688640157,-978.2,9.975e-05,2]
[348627726,1736688640167,-936.58,9.975e-05,2]
[348627727,1736688640176,-532.2734262,9.975e-05,2]
[348627728,1736688640186,-1578.44,9.975e-05,2]
[348627729,1736688640199,-650.2,9.975e-05,2]
[348627730,1736688640209,-715.43,9.975e-05,2]
[348627731,1736688640219,-517.4,9.975e-05,2]
[348627732,1736688640228,-500.0,9.975e-05,2]
[348627733,1736688640238,-563.92,9.975e-05,2]
[348627734,1736688640251,-1401.09,9.975e-05,2]
[348627735,1736688640261,-823.28,9.975e-05,2]
[348627736,1736688640270,-908.88,9.975e-05,2]
[348627737,1736688640284,-500.0,9.975e-05,2]
[348627738,1736688640294,-500.0,9.975e-05,2]
[348627739,1736688640303,-864.96,9.975e-05,2]
[348627740,1736688640312,-3168.57,9.975e-05,2]
[348627741,1736688640321,-1753.36,9.975e-05,2]
[348627742,1736688640331,-505.31,9.975e-05,2]
[348627743,1736688640340,-2254.09,9.975e-05,2]
[348627744,1736688640350,-501.76566626,9.975e-05,2]
[348627745,1736688640360,-3346.51,9.975e-05,2]
[348627746,1736688640370,-662.39,9.975e-05,2]
[348627747,1736688640379,-500.0,9.975e-05,2]
[348627748,1736688640387,-500.0,9.975e-05,2]
[348627749,1736688640396,-500.0,9.975e-05,2]
[348627750,1736688640406,-500.0,9.975e-05,2]
[348627751,1736688640415,-500.0,9.975e-05,2]
[348627752,1736688640424,-760.1,9.975e-05,2]
[348627753,1736688640434,-756.61,9.975e-05,2]
[348627754,1736688640444,-2522.13,9.975e-05,2]
[348627755,1736688640455,-717.76,9.975e-05,2]
[348627756,1736688640465,-1699.24,9.975e-05,2]
[348627757,1736688640474,-154.6158271,9.975e-05,2]
[348627758,1736688640484,-3197.53,9.975e-05,2]
[348627759,1736688640493,-503.75735965,9.975e-05,2]
[348627760,1736688640502,-500.0,9.975e-05,2]
[348627761,1736688640511,-2673.65,9.975e-05,2]
[348627762,1736688640521,-502.9020632,9.975e-05,2]
[348627763,1736688640530,-502.779308,9.975e-05,2]
[348627764,1736688640539,-500.0,9.975e-05,2]
[348627765,1736688640549,-500.0,9.975e-05,2]
[348627766,1736688640558,-3724.6,9.975e-05,2]
[348627767,1736688640568,-500.0,9.975e-05,2]
[348627768,1736688640577,-653.22,9.975e-05,2]
[348627769,1736688640587,-500.0,9.975e-05,2]
[348627770,1736688640596,-549.40614736,9.975e-05,2]
[348627771,1736688640605,-500.0,9.975e-05,2]
[348627772,1736688640614,-567.55,9.975e-05,2]
[348627773,1736688640623,-500.0,9.975e-05,2]
[348627774,1736688640632,-1880.99,9.975e-05,2]
[348627775,1736688640642,-500.0,9.975e-05,2]
[348627776,1736688640650,-500.0,9.976e-05,2]
[348627777,1736688640659,-500.0,9.976e-05,2]
[348627778,1736688640668,-500.0,9.976e-05,2]
[348627779,1736688640678,-500.0,9.976e-05,2]
[348627780,1736688640687,-500.0,9.976e-05,2]
[348627781,1736688640696,-500.0,9.976e-05,2]
[348627782,1736688640705,-500.0,9.976e-05,2]
[348627783,1736688640714,-500.0,9.976e-05,2]
[348627784,1736688640723,-500.0,9.976e-05,2]
[348627785,1736688640732,-500.0,9.976e-05,2]
[348627786,1736688640741,-335.15673387,9.976e-05,2]
[348627787,1736688640750,-572.0,9.976e-05,2]
[348627788,1736688640759,-500.0,9.976e-05,2]
[348627789,1736688640768,-500.0,9.976e-05,2]
[348627790,1736688640776,-500.0,9.976e-05,2]
[348627791,1736688640785,-500.0,9.976e-05,2]
[348627792,1736688640794,-500.0,9.976e-05,2]
[348627793,1736688640803,-500.0,9.976e-05,2]
[348627794,1736688640812,-500.0,9.976e-05,2]
[348627795,1736688640821,-504.85146311,9.976e-05,2]
[348627796,1736688640829,-500.0,9.976e-05,2]
[348627797,1736688640838,-500.0,9.976e-05,2]
[348627798,1736688640847,-547.0,9.976e-05,2]
[348627799,1736688640856,-500.0,9.976e-05,2]
[348627800,1736688640865,-500.0,9.976e-05,2]
[348627801,1736688640874,-500.0,9.976e-05,2]
[348627802,1736688640883,-500.0,9.976e-05,2]
[348627803,1736688640892,-500.0,9.976e-05,2]
[348627804,1736688640901,-500.0,9.976e-05,2]
[348627805,1736688640910,-500.0,9.976e-05,2]
[348627806,1736688640919,-507.1701761,9.976e-05,2]
[348627807,1736688640928,-500.0,9.976e-05,2]
[348627808,1736688640937,-500.0,9.976e-05,2]
[348627809,1736688640946,-500.0,9.976e-05,2]
[348627810,1736688640955,-502.43526942,9.976e-05,2]
[348627811,1736688640964,-500.0,9.976e-05,2]
[348627812,1736688640974,-500.0,9.976e-05,2]
[348627813,1736688640984,-500.0,9.976e-05,2]
[348627814,1736688640992,-500.0,9.976e-05,2]
[348627815,1736688641002,-500.0,9.976e-05,2]
[348627816,1736688641011,-501.69696957,9.976e-05,2]
[348627817,1736688641020,-500.0,9.976e-05,2]
[348627818,1736688641029,-500.0,9.976e-05,2]
[348627819,1736688641038,-500.0,9.976e-05,2]
[348627820,1736688641048,-500.0,9.976e-05,2]
[348627821,1736688641057,-500.0,9.976e-05,2]
[348627822,1736688641066,-503.05132885,9.976e-05,2]
[348627823,1736688641076,-500.0,9.976e-05,2]
[348627824,1736688641085,-500.0,9.976e-05,2]
[348627825,1736688641094,-500.0,9.976e-05,2]
[348627826,1736688641103,-500.0,9.976e-05,2]
[348627827,1736688641112,-503.37706134,9.976e-05,2]
[348627828,1736688641122,-503.25160023,9.976e-05,2]
[348627829,1736688641131,-589.05,9.976e-05,2]
[348627830,1736688641140,-507.13279305,9.976e-05,2]
[348627831,1736688641149,-570.04644014,9.976e-05,2]
[348627832,1736688641157,-500.0,9.976e-05,2]
[348627833,1736688641166,-502.65,9.976e-05,2]
[348627834,1736688641176,-500.0,9.976e-05,2]
[348627835,1736688641185,-778.77,9.976e-05,2]
[348627836,1736688641194,-500.0,9.976e-05,2]
[348627837,1736688641202,-784.57,9.976e-05,2]
[348627838,1736688641211,-579.54,9.976e-05,2]
[348627839,1736688641220,-546.61,9.976e-05,2]
[348627840,1736688641229,-829.19,9.976e-05,2]
[348627841,1736688641238,-500.0,9.976e-05,2]
[348627842,1736688641247,-500.0,9.976e-05,2]
[348627843,1736688641256,-551.06,9.976e-05,2]
[348627844,1736688641265,-500.0,9.976e-05,2]
[348627845,1736688641275,-1018.82,9.976e-05,2]
[348627846,1736688641283,-603.35,9.976e-05,2]
[348627847,1736688641292,-938.31,9.976e-05,2]
[348627848,1736688641302,-500.0,9.976e-05,2]
[348627849,1736688641311,-1031.58,9.976e-05,2]
[348627850,1736688641320,-500.0,9.976e-05,2]
[348627851,1736688641329,-539.75,9.976e-05,2]
[348627852,1736688641338,-500.0,9.976e-05,2]
[348627853,1736688641347,-767.15,9.976e-05,2]
[348627854,1736688641356,-500.0,9.976e-05,2]
[348627855,1736688641366,-500.0,9.976e-05,2]
[348627856,1736688641375,-989.34,9.976e-05,2]
[348627857,1736688641384,-1267.48,9.976e-05,2]
[348627858,1736688641393,-1838.72,9.976e-05,2]
[348627859,1736688641402,-500.0,9.976e-05,2]
[348627860,1736688641411,-1000.0,9.976e-05,2]
[348627861,1736688641420,-1051.68,9.976e-05,2]
[348627862,1736688641428,-500.0,9.976e-05,2]
[348627863,1736688641437,-2444.62,9.976e-05,2]
[348627864,1736688641446,-2211.67,9.976e-05,2]
[348627865,1736688641456,-154.61582698,9.976e-05,2]
[348627866,1736688641465,-154.61582698,9.978e-05,2]
[348627867,1736688641474,-154.61582698,9.979e-05,2]
[348627868,1736688641484,-154.61582698,9.981e-05,2]
[348627869,1736688641493,-154.61582698,9.982e-05,2]
[348627870,1736688641502,-154.61582698,9.983e-05,2]
[348627871,1736688641511,-154.61582698,9.985e-05,2]
[348627872,1736688641520,-3464.6,9.986e-05,2]
[348627873,1736688641529,-165.97,9.986e-05,2]
[348627874,1736688641538,-637.2328266,9.992e-05,2]
[348627875,1736688641547,-2255.1854365,9.992e-05,2]
[348627876,1736688641555,-653.3743395,9.992e-05,2]
[348627877,1736688641565,-2083.0318602,9.992e-05,2]
[348627878,1736688641573,-7225.4,9.996e-05,2]
[348627879,1736688641583,-58372.38192,9.998e-05,2]
[348627880,1736688641592,-7225.4,9.998e-05,2]
[348627881,1736688641603,-500.0,9.999e-05,2]
[348627882,1736688641612,-500.0,9.999e-05,2]
[348627883,1736688641622,-500.0,9.999e-05,2]
[348627884,1736688641631,-500.0,9.999e-05,2]
[348627885,1736688641640,-500.0,9.999e-05,2]
[348627886,1736688641650,-500.0,9.999e-05,2]
[348627887,1736688641659,-500.0,9.999e-05,2]
[348627888,1736688641668,-500.0,9.999e-05,2]
[348627889,1736688641677,-500.0,9.999e-05,2]
[348627890,1736688641685,-500.0,9.999e-05,2]
[348627891,1736688641694,-500.0,9.999e-05,2]
[348627892,1736688641703,-500.0,9.999e-05,2]
[348627893,1736688641712,-500.0,9.999e-05,2]
[348627894,1736688641721,-500.0,9.999e-05,2]
[348627895,1736688641731,-500.0,9.999e-05,2]
[348627896,1736688641739,-500.0,9.999e-05,2]
[348627897,1736688641748,-500.0,9.999e-05,2]
[348627898,1736688641757,-500.0,9.999e-05,2]
[348627899,1736688641767,-500.0,9.999e-05,2]
[348627900,1736688641777,-234.37274499,9.999e-05,2]
[348627901,1736688641787,-500.0,9.999e-05,2]
[348627902,1736688641795,-500.0,9.999e-05,2]
[348627903,1736688641804,-500.0,9.999e-05,2]
[348627904,1736688641813,-500.0,9.999e-05,2]
[348627905,1736688641822,-169.91313375,9.999e-05,2]
[348627906,1736688641832,-500.0,9.999e-05,2]
[348627907,1736688641843,-500.0,9.999e-05,2]
[348627908,1736688641854,-500.0,9.999e-05,2]
[348627909,1736688641865,-500.0,9.999e-05,2]
[348627910,1736688641874,-500.0,9.999e-05,2]
[348627911,1736688641885,-500.0,9.999e-05,2]
[348627912,1736688641894,-500.0,9.999e-05,2]
[348627913,1736688641904,-500.0,9.999e-05,2]
[348627914,1736688641914,-500.0,9.999e-05,2]
[348627915,1736688641924,-502.06239129,9.999e-05,2]
[348627916,1736688641934,-500.0,9.999e-05,2]
[348627917,1736688641944,-500.0,9.999e-05,2]
[348627918,1736688641953,-500.0,9.999e-05,2]
[348627919,1736688641962,-542.1,9.999e-05,2]
[348627920,1736688641971,-500.0,9.999e-05,2]
[348627921,1736688641980,-500.0,9.999e-05,2]
[348627922,1736688641989,-500.0,9.999e-05,2]
[348627923,1736688641998,-500.0,9.999e-05,2]
[348627924,1736688642007,-500.0,9.999e-05,2]
[348627925,1736688642018,-500.0,9.999e-05,2]
[348627926,1736688642028,-500.0,9.999e-05,2]
[348627927,1736688642037,-500.0,9.999e-05,2]
[348627928,1736688642046,-500.0,9.999e-05,2]
[348627929,1736688642058,-500.0,9.999e-05,2]
[348627930,1736688642068,-500.0,9.999e-05,2]
[348627931,1736688642079,-500.0,9.999e-05,2]
[348627932,1736688642089,-500.0,9.999e-05,2]
[348627933,1736688642098,-506.91,9.999e-05,2]
[348627934,1736688642108,-500.0,9.999e-05,2]
[348627935,1736688642118,-500.0,9.999e-05,2]
[348627936,1736688642128,-500.0,9.999e-05,2]
[348627937,1736688642138,-500.0,9.999e-05,2]
[348627938,1736688642149,-500.0,9.999e-05,2]
[348627939,1736688642158,-502.3678845,9.999e-05,2]
[348627940,1736688642168,-537.19,9.999e-05,2]
[348627941,1736688642177,-500.0,9.999e-05,2]
[348627942,1736688642186,-365.91340295,9.999e-05,2]
[348627943,1736688642197,-500.0,9.999e-05,2]
[348627944,1736688642208,-500.0,9.999e-05,2]
[348627945,1736688642217,-500.0,9.999e-05,2]
[348627946,1736688642226,-500.0,9.999e-05,2]
[348627947,1736688642235,-500.0,9.999e-05,2]
[348627948,1736688642244,-504.54739561,9.999e-05,2]
[348627949,1736688642253,-500.0,9.999e-05,2]
[348627950,1736688642262,-501.41686359,9.999e-05,2]
[348627951,1736688642272,-500.0,9.999e-05,2]
[348627953,1736688642282,-500.0,9.999e-05,2]
[348627954,1736688642292,-666.84,9.999e-05,2]
[348627955,1736688642301,-500.0,9.999e-05,2]
[348627956,1736688642311,-609.96463229,9.999e-05,2]
[348627957,1736688642320,-500.0,9.999e-05,2]
[348627958,1736688642329,-500.0,9.999e-05,2]
[348627959,1736688642338,-500.0,9.999e-05,2]
[348627960,1736688642348,-500.0,9.999e-05,2]
[348627962,1736688642357,-500.0,9.999e-05,2]
[348627963,1736688642367,-500.0,9.999e-05,2]
[348627964,1736688642376,-500.0,9.999e-05,2]
[348627965,1736688642385,-500.0,9.999e-05,2]
[348627966,1736688642394,-500.0,9.999e-05,2]
[348627967,1736688642404,-500.0,9.999e-05,2]
[348627968,1736688642413,-500.0,9.999e-05,2]
[348627969,1736688642422,-500.0,9.999e-05,2]
[348627970,1736688642431,-1642.7,9.999e-05,2]
[348627971,1736688642440,-500.0,9.999e-05,2]
[348627972,1736688642449,-500.0,9.999e-05,2]
[348627973,1736688642459,-263973.81666181,9.999e-05,2]
[348627974,1736688642468,-630.66,9.999e-05,2]
[348627975,1736688642478,-500.0,9.999e-05,2]
[348627977,1736688642487,-501.89423686,9.999e-05,2]
[348627979,1736688642496,-500.0,9.999e-05,2]
[348627981,1736688642505,-500.0,9.999e-05,2]
[348627983,1736688642514,-514.11,9.999e-05,2]
[348627985,1736688642524,-1160.28520055,9.999e-05,3]
[348627987,1736688642533,-1160.28520056,9.999e-05,3]
[348627989,1736688642542,-500.0,9.999e-05,2]
[348627990,1736688642551,-501.5453573,9.999e-05,2]
[348627991,1736688642559,-500.18172553,9.999e-05,2]
[348627992,1736688642569,-500.0,9.999e-05,2]
[348627993,1736688642578,-500.0,9.999e-05,2]
[348627994,1736688642587,-233.53195379,9.999e-05,2]
[348627995,1736688642596,-500.0,9.999e-05,2]
[348627996,1736688642605,-500.0,9.999e-05,2]
[348627997,1736688642615,-500.0,9.999e-05,2]
[348627998,1736688642624,-500.0,9.999e-05,2]
[348627999,1736688642633,-500.0,9.999e-05,2]
[348628000,1736688642642,-500.0,9.999e-05,2]
[348628001,1736688642651,-500.0,9.999e-05,2]
[348628002,1736688642660,-501.32968642,9.999e-05,2]
[348628003,1736688642669,-498.52988441,9.999e-05,2]
[348628004,1736688642678,-500.0,9.999e-05,2]
[348628005,1736688642688,-500.0,9.999e-05,2]
[348628006,1736688642697,-500.0,9.999e-05,2]
[348628007,1736688642706,-500.0,9.999e-05,2]
[348628008,1736688642715,-588.13052689,9.999e-05,2]
[348628009,1736688642724,-500.0,9.999e-05,2]
[348628010,1736688642734,-500.0,9.999e-05,2]
[348628011,1736688642743,-500.0,9.999e-05,2]
[348628012,1736688642753,-500.0,9.999e-05,2]
[348628013,1736688642762,-500.0,9.999e-05,2]
[348628014,1736688642773,-607.65332772,9.999e-05,2]
[348628015,1736688642784,-502.07028179,9.999e-05,2]
[348628016,1736688642793,-500.0,9.999e-05,2]
[348628017,1736688642803,-500.0,9.999e-05,2]
[348628018,1736688642815,-500.37600263,9.999e-05,2]
[348628019,1736688642824,-500.0,9.999e-05,2]
[348628020,1736688642834,-500.0,9.999e-05,2]
[348628021,1736688642844,-500.0,9.999e-05,2]
[348628022,1736688642854,-500.0,9.999e-05,2]
[348628023,1736688642864,-501.37751107,9.999e-05,2]
[348628024,1736688642874,-496.74119348,9.999e-05,2]
[348628025,1736688642884,-500.99204811,9.999e-05,2]
[348628026,1736688642895,-500.0,9.999e-05,2]
[348628027,1736688642904,-500.0,9.999e-05,2]
[348628028,1736688642913,-500.0,9.999e-05,2]
[348628029,1736688642922,-500.0,9.999e-05,2]
[348628030,1736688642931,-500.0,9.999e-05,2]
[348628031,1736688642940,-500.0,9.999e-05,2]
[348628032,1736688642949,-500.0,9.999e-05,2]
[348628033,1736688642959,-500.0,9.999e-05,2]
[348628034,1736688642968,-500.0,9.999e-05,2]
[348628035,1736688642977,-500.81245417,9.999e-05,2]
[348628037,1736688642986,-502.70925514,9.999e-05,2]
[348628039,1736688642995,-501.42901297,9.999e-05,2]
[348628041,1736688643005,-504.06156845,9.999e-05,2]
[348628043,1736688643014,-500.0,9.999e-05,2]
[348628045,1736688643022,-500.0,9.999e-05,2]
[348628047,1736688643031,-599.18615038,9.999e-05,2]
[348628048,1736688643040,-501.38911777,9.999e-05,2]
[348628050,1736688643050,-500.84901607,9.999e-05,2]
[348628051,1736688643060,-501.49305795,9.999e-05,2]
[348628052,1736688643069,-500.0,9.999e-05,2]
[348628053,1736688643078,-500.89917465,9.999e-05,2]
[348628054,1736688643087,-502.20081016,9.999e-05,2]
[348628055,1736688643097,-500.0,9.999e-05,2]
[348628056,1736688643106,-500.89569115,9.999e-05,2]
[348628057,1736688643115,-501.37987764,9.999e-05,2]